[Event "Jerry Simon Memorial 2024"]
[Site "New York"]
[Date "2024.11.25"]
[Round "5.10"]
[White "Patel, Raza Mikal"]
[Black "Chachere, Theodore"]
[Result "1-0"]
[ECO "E21"]
[WhiteElo "1733"]
[BlackElo "1907"]
[Annotator "RC"]
[PlyCount "62"]
[EventDate "2024.11.22"]
[EventType "swiss"]
[EventCountry "USA"]
[SourceTitle "playchess.com"]
[Source "ChessBase"]
[SourceQuality "1"]
[TimeControl "5400+30"]

1. d4 {[%emt 0:00:08]} Nf6 {[%emt 0:00:31]} 2. Nf3 {[%emt 0:00:13]} e6 {[%emt 0:00:06]} 3. c4 {[%emt 0:00:23]} b6 {[%emt 0:00:04]} 4. Nc3 {[%emt 0:00:07]} Bb4 {[%emt 0:00:32]} 5. Bd2 {[%emt 0:00:14]} Bb7 {[%emt 0:00:30]} 6. e3 {[%emt 0:00:18]} Bxc3 {[%emt 0:03:24]} 7. bxc3 {[%emt 0:00:51]} O-O {[%emt 0:00:20]} 8. Bd3 {[%emt 0:00:21]} c5 {[%emt 0:01:52]} 9. Rb1 {[%emt 0:03:06]} Qc7 {[%emt 0:03:58]} 10. O-O {[%emt 0:01:30]} Nc6 {[%emt 0:09:42]} 11. e4 {[%emt 0:03:50]} d6 {[%emt 0:01:15]} 12. Qe2 {[%emt 0:10:47]} e5 {[%emt 0:01:45]} 13. d5 {[%emt 0:01:40]} Ne7 {[%emt 0:02:13]} 14. Ne1 {[%emt 0:08:08]} Ng6 {[%emt 0:02:07]} 15. Kh1 {[%emt 0:09:55]} h6 {[%emt 0:02:42]} 16. g3 {[%emt 0:03:43]} Bc8 {[%emt 0:01:36]} 17. f4 {[%emt 0:09:37]} exf4 {[%emt 0:01:54]} 18. gxf4 {[%emt 0:00:49]} Bg4 {[%emt 0:01:21]} 19. Qg2 {[%emt 0:01:48]} Kh8 {[%emt 0:22:15]} 20. Rg1 {[%emt 0:06:47]} Rg8 {[%emt 0:03:08]} 21. Nf3 {[%emt 0:06:33]} Rae8 {[%emt 0:02:10]} 22. Rbe1 {[%emt 0:02:16]} Bh5 {[%emt 0:10:09]} 23. e5 {[%emt 0:05:15]} Bxf3 {[%emt 0:02:43]} 24. Qxf3 {[%emt 0:00:29]} dxe5 {[%emt 0:00:15]} 25. Bxg6 {[%emt 0:01:20]} fxg6 {[%emt 0:00:18]} 26. fxe5 {[%emt 0:00:37]} Rxe5 {[%emt 0:02:47]} 27. Bf4 {[%emt 0:10:48]} Rf5 {[%emt 0:00:08]} 28. Bxc7 {[%emt 0:00:38]} Rxf3 {[%emt 0:00:03]} 29. Rxg6 {[%emt 0:03:24]} Rxc3 {[%emt 0:07:03]} 30. Be5 {[%emt 0:03:48]} Rxc4 {[%emt 0:00:33]} 31. Reg1 {[%emt 0:00:43]} Ne4 {[%emt 0:05:49]} 1-0